bitfinex/quotes_SOLUSD_20250922
["timestamp","ask_amount","ask_price","bid_price","bid_amount"]
[1758562829045,26.0,221.55,221.5,6.86827914]
[1758562829236,26.0,221.55,221.5,7.52827914]
[1758562829430,26.0,221.55,221.5,11.38294523]
[1758562829731,26.0,221.57,221.53,6.86827914]
[1758562829919,26.0,221.57,221.53,7.52827914]
[1758562830253,26.0,221.56,221.53,0.66]
[1758562830629,0.66,221.56,221.52,6.86827914]
[1758562830830,0.66,221.56,221.51,6.86827914]
[1758562831036,0.66,221.56,221.51,20.46387315]
[1758562831344,6.86827914,221.6,221.53,11.38234044]
[1758562831524,26.0,221.58,221.55,6.86827914]
[1758562831726,26.0,221.58,221.55,7.52827914]
[1758562831929,0.66,221.62,221.57,6.86827914]
[1758562832155,26.0,221.59,221.55,7.52827914]
[1758562832526,0.66,221.61,221.55,7.52827914]
[1758562832728,26.0,221.59,221.55,7.52827914]
[1758562832927,26.0,221.59,221.56,0.66]
[1758562833323,26.0,221.59,221.56,5.17338006]
[1758562833748,26.0,221.59,221.56,0.66]
[1758562833955,26.0,221.59,221.55,11.38193258]
[1758562834253,26.0,221.59,221.55,12.04193258]
[1758562834659,26.0,221.59,221.55,9.84436283]
[1758562834844,26.0,221.59,221.55,5.17365344]
[1758562835040,0.66,221.58,221.53,4.51389552]
[1758562835263,0.66,221.6,221.54,0.66]
[1758562835430,30.67070939,221.59,221.54,0.66]
[1758562835631,31.33070939,221.59,221.54,0.66]
[1758562836146,26.66,221.59,221.54,0.66]
[1758562836557,26.66,221.59,221.54,5.33070939]
[1758562836755,0.66,221.62,221.56,4.51345008]
[1758562836945,134.2,221.61,221.56,9.84415947]
[1758562837152,134.2,221.61,221.56,9.18415947]
[1758562837336,134.2,221.61,221.57,5.33070939]
[1758562837538,134.2,221.61,221.58,0.66]
[1758562837946,134.2,221.61,221.57,4.67070939]
[1758562838146,134.2,221.61,221.56,20.46778467]
[1758562838347,134.2,221.61,221.56,21.12778467]
[1758562838761,134.2,221.61,221.57,0.66]
[1758562838958,134.2,221.61,221.58,4.51304269]
[1758562839347,134.2,221.61,221.58,5.17304269]
[1758562839543,134.2,221.61,221.58,4.51304269]
[1758562839747,134.86,221.61,221.58,4.51304269]
[1758562840351,134.2,221.61,221.58,4.51304269]
[1758562840547,134.2,221.61,221.59,0.66]
[1758562840750,134.2,221.61,221.58,4.51304269]
[1758562841157,134.2,221.61,221.59,0.66]
[1758562841351,134.2,221.61,221.6,5.33070939]
[1758562841548,134.2,221.61,221.6,4.67070939]
[1758562841864,134.2,221.61,221.59,4.67070939]
[1758562842245,5.33070939,221.6,221.54,13.59559401]
[1758562842453,4.67070939,221.58,221.53,0.66]
[1758562842663,5.33070939,221.58,221.52,13.59559401]
[1758562842971,5.33070939,221.58,221.51,9.84517826]
[1758562843145,9.84395576,221.57,221.51,4.51446887]
[1758562843346,5.33070939,221.57,221.52,13.59559401]
[1758562843555,0.66,221.56,221.52,13.59559401]
[1758562843772,0.66,221.56,221.51,9.18517826]
[1758562844462,0.66,221.55,221.52,13.59559401]
[1758562844666,4.67070939,221.58,221.52,13.59559401]
[1758562844973,3.35530805,221.57,221.51,9.18517826]
[1758562845159,5.1730756,221.58,221.51,22.78077227]
[1758562845473,3.35563876,221.57,221.51,22.78077227]
[1758562845675,5.33070939,221.56,221.49,13.59559401]
[1758562845849,5.33070939,221.56,221.48,0.66]
[1758562845850,4.67070939,221.55,221.48,0.66]
[1758562846170,4.67070939,221.51,221.46,13.3444519]
[1758562846364,4.67070939,221.51,221.45,4.67070939]
[1758562846365,0.66,221.5,221.45,4.67070939]
[1758562846668,0.66,221.5,221.45,9.84637915]
[1758562846855,9.18506434,221.52,221.45,9.18637915]
[1758562847172,9.84506434,221.52,221.46,0.66]
[1758562847469,9.84506434,221.52,221.45,9.18637915]
[1758562848874,9.84506434,221.52,221.45,22.64667592]
[1758562849074,5.33070939,221.51,221.4,4.51666689]
[1758562849247,4.67070939,221.46,221.4,0.66]
[1758562849449,5.33070939,221.46,221.4,0.66]
[1758562849968,0.66,221.46,221.4,5.33070939]
[1758562850167,5.33070939,221.46,221.4,0.66]
[1758562850369,4.67070939,221.44,221.4,13.48232194]
[1758562850582,0.66,221.43,221.38,4.51711637]
[1758562850974,0.66,221.43,221.38,6.97350143]
[1758562851358,0.66,221.43,221.38,5.17711637]
[1758562851686,0.66,221.43,221.38,6.97350143]
[1758562852687,5.17610653,221.43,221.38,0.66]
[1758562852860,0.66,221.42,221.37,15.39197907]
[1758562853190,0.66,221.41,221.36,0.66]
[1758562853955,0.66,221.43,221.37,2.45638506]
[1758562854179,26.66,221.43,221.38,1.79638506]
[1758562854388,26.66,221.43,221.38,2.45638506]
[1758562854554,26.66,221.43,221.38,0.66]
[1758562854755,26.66,221.43,221.38,5.17707516]
[1758562854976,26.0,221.43,221.38,5.17707516]
[1758562855275,26.66,221.43,221.38,5.17707516]
[1758562855681,26.66,221.43,221.38,6.97346022]
[1758562855871,30.51611872,221.43,221.38,2.45638506]
[1758562856184,30.51611872,221.43,221.38,0.66]
[1758562856382,31.17611872,221.43,221.38,0.66]
[1758562856579,0.66,221.42,221.38,0.66]
[1758562857087,0.66,221.42,221.37,6.31359691]
[1758562857389,0.69,221.44,221.38,1.79638506]
[1758562857571,0.69,221.44,221.38,2.49638506]
[1758562858257,0.69,221.44,221.39,4.51691584]
[1758562858556,0.69,221.43,221.38,7.01349527]
[1758562858759,134.2,221.44,221.38,7.01349527]
[1758562858956,134.89,221.44,221.38,7.01349527]
[1758562859367,136.68638506,221.44,221.38,5.21711021]
[1758562859766,4.51609989,221.43,221.38,5.21711021]
[1758562860087,5.20609989,221.43,221.38,5.21711021]
[1758562860465,5.20609989,221.43,221.27,0.7]
[1758562860466,1.79638506,221.39,221.27,0.7]
[1758562860776,1.79638506,221.39,221.16,43.78554024]
[1758562860777,1.79638506,221.32,221.25,2.69638506]
[1758562860956,0.69,221.31,221.25,2.69638506]
[1758562861157,2.48638506,221.31,221.25,0.2]
[1758562861364,27.79638506,221.3,221.25,0.2]
[1758562861668,6.31513788,221.3,221.25,0.2]
[1758562861871,7.00513788,221.3,221.25,0.2]
[1758562862781,38.32638506,221.33,221.29,4.71893019]
[1758562862980,26.0,221.3,221.29,0.2]
[1758562864597,26.69,221.3,221.29,0.2]
[1758562864803,64.32638506,221.3,221.29,0.2]
[1758562865090,64.32638506,221.3,221.25,0.2]
[1758562865320,1.79638506,221.26,221.25,0.2]
[1758562865789,1.79638506,221.27,221.25,0.2]
[1758562866101,11.29586119,221.32,221.25,0.2]
[1758562866102,35.84,221.31,221.26,1.79638506]
[1758562866278,1.79638506,221.33,221.27,2.49638506]
[1758562866602,0.69,221.34,221.28,1.79638506]
[1758562866777,2.48638506,221.33,221.26,1.79638506]
[1758562867085,28.48638506,221.32,221.25,6.51614891]
[1758562867274,26.69,221.32,221.25,6.51614891]
[1758562867469,1.79638506,221.33,221.26,1.79638506]
[1758562867665,26.0,221.31,221.26,7.01582158]
[1758562868564,0.69,221.3,221.25,0.2]
[1758562868884,1.79638506,221.26,221.25,0.2]
[1758562869281,27.79638506,221.26,221.25,0.2]
[1758562869479,26.0,221.26,221.25,0.2]
[1758562871102,35.86,221.29,221.25,2.69638506]
[1758562871286,26.0,221.29,221.26,2.49638506]
[1758562871483,35.86,221.32,221.27,1.79638506]
[1758562871887,26.0,221.29,221.27,6.31568058]
[1758562872392,35.86,221.32,221.27,6.31568058]
[1758562872393,134.2,221.33,221.28,2.49638506]
[1758562872593,134.2,221.33,221.28,1.79638506]
[1758562872889,134.2,221.33,221.28,2.49638506]
[1758562873078,134.2,221.33,221.27,6.31568058]
[1758562873079,0.69,221.32,221.27,6.31568058]
[1758562873501,160.2,221.33,221.27,7.01568058]
[1758562874301,134.2,221.33,221.3,1.79638506]
[1758562874500,35.86,221.36,221.3,2.49638506]
[1758562874682,26.0,221.33,221.3,5.38121924]
[1758562875078,26.0,221.33,221.3,4.68121924]
[1758562875284,26.0,221.33,221.29,4.68121924]
[1758562875484,0.72,221.32,221.27,4.51929552]
[1758562875795,4.68121924,221.32,221.26,9.20078553]
[1758562876000,4.68121924,221.32,221.27,0.68]
[1758562876495,9.19953183,221.33,221.27,0.68]
[1758562876704,9.19953183,221.33,221.27,5.36121924]
[1758562876900,9.19953183,221.33,221.28,4.51916124]
[1758562877080,9.91953183,221.33,221.28,4.51916124]
[1758562878312,38.52706374,221.43,221.3,4.68121924]
[1758562878614,0.72,221.39,221.32,4.68121924]
[1758562878818,4.68121924,221.4,221.34,4.68121924]
[1758562879313,4.68121924,221.4,221.33,5.36121924]
[1758562879710,5.40121924,221.4,221.33,5.36121924]
[1758562879894,4.68121924,221.38,221.33,0.68]
[1758562880090,134.2,221.37,221.32,4.68121924]
[1758562880343,134.2,221.37,221.32,9.19937457]
[1758562880544,134.2,221.37,221.33,0.68]
[1758562881696,134.2,221.37,221.33,5.19798369]
[1758562882305,134.2,221.37,221.33,4.51798369]
[1758562882517,143.39865903,221.37,221.31,4.51835028]
[1758562882711,30.68121924,221.33,221.27,13.59559401]
[1758562883617,35.19937487,221.33,221.26,5.19956973]
[1758562883819,35.19937487,221.33,221.26,9.88078897]
[1758562884403,30.68121924,221.32,221.26,9.88078897]
[1758562884723,35.19958999,221.32,221.26,4.51956973]
[1758562884929,31.23837075,221.32,221.25,4.7197616]
[1758562885096,4.68121924,221.3,221.25,4.7197616]
[1758562886020,9.19982917,221.31,221.25,4.7197616]
[1758562886519,4.68121924,221.31,221.25,4.7197616]
[1758562887508,9.1997842,221.31,221.25,4.7197616]
[1758562888101,4.68121924,221.3,221.25,4.7197616]
[1758562888302,4.68121924,221.3,221.25,5.3897616]
[1758562888503,4.68121924,221.31,221.25,5.3897616]
[1758562889211,134.2,221.37,221.25,5.3897616]
[1758562889212,35.84,221.34,221.27,4.68121924]
[1758562889420,26.0,221.32,221.28,9.2001856]
[1758562889726,26.0,221.32,221.28,4.51896636]
[1758562890512,0.68,221.31,221.25,4.88121924]
[1758562891312,4.03505976,221.31,221.25,4.88121924]
[1758562891927,0.68,221.31,221.25,9.40093932]
[1758562892128,134.2,221.33,221.28,4.68121924]
[1758562892306,3.35727197,221.32,221.28,5.35121924]
[1758562892511,134.2,221.33,221.28,5.35121924]
[1758562893122,139.39822106,221.33,221.28,0.67]
[1758562893323,3.35980031,221.32,221.27,9.20058472]
[1758562893521,134.2,221.33,221.29,4.68121924]
[1758562893839,0.68,221.38,221.32,4.68121924]
[1758562894124,5.5140608,221.38,221.34,4.68121924]
[1758562894326,29.35939942,221.37,221.35,0.67]
[1758562894627,3.35939942,221.36,221.34,6.85943871]
[1758562894828,26.0,221.37,221.34,6.85943871]
[1758562895122,29.36102071,221.36,221.34,6.85943871]
[1758562895296,26.0,221.36,221.34,6.85943871]
[1758562895693,7.53943871,221.4,221.34,6.85943871]
[1758562895915,5.51985092,221.39,221.34,7.52943871]
[1758562896222,5.51985092,221.38,221.37,6.85943871]
[1758562896417,3.36280944,221.38,221.37,7.52943871]
[1758562896630,3.36280944,221.38,221.37,3.47671902]
[1758562896799,3.36280944,221.38,221.37,0.67]
[1758562897114,3.36280944,221.38,221.37,3.47671902]
[1758562897420,3.36280944,221.38,221.37,2.80671902]
[1758562897621,4.04280944,221.38,221.34,2.80671902]
[1758562897931,3.36280944,221.37,221.35,3.47671902]
[1758562898105,26.0,221.4,221.36,5.187528]
[1758562898298,3.36437531,221.39,221.36,5.187528]
[1758562898624,3.36437531,221.38,221.37,3.47671902]
[1758562898804,3.36437531,221.38,221.37,2.80671902]
[1758562899120,3.36437531,221.38,221.37,3.47671902]
[1758562899325,3.36437531,221.38,221.37,17.07231303]
[1758562899530,134.2,221.43,221.38,13.59559401]
[1758562899846,5.52606074,221.42,221.41,2.80671902]
[1758562900136,134.2,221.43,221.41,7.99322685]
[1758562900421,36.52,221.49,221.42,3.47671902]
[1758562900728,5.52655547,221.48,221.43,2.80671902]
[1758562900944,26.0,221.45,221.42,2.80671902]
[1758562901735,26.0,221.46,221.42,16.54003452]
[1758562901936,3.36630769,221.45,221.42,16.54003452]
[1758562902306,30.51556832,221.46,221.42,13.7333155]
[1758562902506,30.51556832,221.46,221.41,2.80671902]
[1758562902710,30.51556832,221.46,221.41,3.47671902]
[1758562903014,30.51556832,221.46,221.41,7.99317031]
[1758562903203,0.68,221.45,221.41,2.80671902]
[1758562903407,30.51556832,221.46,221.39,4.51674321]
[1758562903408,0.68,221.44,221.4,16.40231303]
[1758562903721,30.51556832,221.46,221.38,13.62865552]
[1758562903722,3.48671902,221.43,221.38,13.62865552]
[1758562903923,0.68,221.42,221.36,2.80671902]
[1758562904119,2.80671902,221.44,221.37,0.67]
[1758562904319,134.2,221.52,221.44,13.59559401]
[1758562904524,5.52768109,221.51,221.48,2.80671902]
[1758562904719,3.36692587,221.5,221.48,2.80671902]
[1758562904922,8.00057656,221.54,221.46,16.40231303]
[1758562905108,26.0,221.5,221.46,16.40231303]
[1758562905309,26.0,221.5,221.47,0.67]
[1758562905628,26.0,221.5,221.47,3.47671902]
[1758562905830,8.00057656,221.54,221.47,3.47671902]
[1758562905831,26.0,221.51,221.47,3.47671902]
[1758562906128,0.68,221.5,221.45,2.80671902]
[1758562906533,0.68,221.5,221.45,3.47671902]
[1758562907237,0.1,221.6,221.48,2.80671902]
[1758562907553,5.6169403,221.6,221.56,2.80671902]
[1758562907703,0.1,221.6,221.56,3.47671902]
[1758562907909,10.12893687,221.6,221.56,2.80671902]
[1758562908121,4.61268411,221.6,221.56,2.80671902]
[1758562908516,0.1,221.6,221.58,2.80671902]
[1758562908730,0.1,221.6,221.58,3.47671902]
[1758562909322,0.1,221.6,221.59,0.67]
[1758562910530,0.1,221.6,221.58,2.80671902]
[1758562910730,0.1,221.6,221.57,13.59559401]
[1758562910919,0.1,221.6,221.58,0.67]
[1758562912027,0.1,221.6,221.57,13.59559401]
[1758562912335,0.1,221.6,221.58,0.67]
[1758562912922,0.1,221.6,221.58,3.47671902]
[1758562913127,0.1,221.6,221.59,3.47671902]
[1758562913719,0.1,221.6,221.59,2.80671902]
[1758562913935,0.1,221.6,221.58,2.80671902]
[1758562914236,0.1,221.6,221.58,3.47671902]
[1758562915636,0.1,221.6,221.56,2.80671902]
[1758562915637,26.78,221.6,221.56,2.80671902]
[1758562915936,26.1,221.6,221.56,3.47671902]
[1758562916321,0.1,221.6,221.56,3.47671902]
[1758562917444,0.72,221.59,221.55,13.59559401]
[1758562917640,0.72,221.58,221.52,3.46671902]
[1758562917943,3.52671902,221.58,221.51,13.59559401]
[1758562918320,26.0,221.56,221.51,13.59559401]
[1758562918525,26.0,221.56,221.52,0.66]
[1758562919232,30.51353578,221.56,221.51,13.59559401]
[1758562919434,31.23353578,221.56,221.51,13.59559401]
[1758562919639,31.23353578,221.56,221.49,3.46671902]
[1758562919640,33.3202548,221.56,221.49,3.46671902]
[1758562919843,0.72,221.55,221.49,3.46671902]
[1758562920230,30.51353578,221.56,221.49,3.46671902]
[1758562920432,30.51353578,221.56,221.5,2.80671902]
[1758562922748,31.23353578,221.56,221.5,2.80671902]
[1758562923640,2.80671902,221.53,221.46,52.18231303]
[1758562923945,0.72,221.52,221.46,13.59559401]
[1758562924134,0.72,221.52,221.46,16.40231303]
[1758562924335,0.72,221.52,221.46,20.91763097]
[1758562924547,5.23430447,221.52,221.46,20.91763097]
[1758562924725,5.23430447,221.52,221.46,16.40231303]
[1758562924927,137.72671902,221.51,221.43,16.40231303]
[1758562925241,134.92,221.51,221.45,2.80671902]
[1758562926546,4.51467268,221.5,221.45,2.80671902]
[1758562926858,0.72,221.49,221.45,2.80671902]
[1758562927345,134.92,221.51,221.45,7.98230492]
[1758562927533,139.43452803,221.51,221.45,2.80671902]
[1758562927740,0.72,221.5,221.45,2.80671902]
[1758562927950,134.2,221.51,221.45,2.80671902]
[1758562928132,134.2,221.51,221.46,5.17548812]
[1758562928741,138.71448264,221.51,221.46,5.17548812]
[1758562928948,134.2,221.5,221.45,2.80671902]
[1758562929122,134.92,221.5,221.45,2.80671902]
[1758562929329,134.92,221.5,221.45,7.98235639]
[1758562929645,134.2,221.5,221.46,0.66]
[1758562929841,134.2,221.5,221.47,3.46671902]
[1758562930024,134.92,221.5,221.47,2.80671902]
[1758562930749,134.2,221.5,221.47,2.80671902]
[1758562931453,134.2,221.5,221.47,7.98194331]
[1758562932048,134.2,221.5,221.47,7.32194331]
[1758562933932,134.2,221.5,221.47,2.80671902]
[1758562934156,0.72,221.49,221.44,2.80671902]
[1758562934338,0.72,221.48,221.44,38.56671902]
[1758562934537,138.71472321,221.5,221.44,38.56671902]
[1758562934732,0.72,221.49,221.42,2.80671902]
[1758562935048,26.0,221.47,221.41,18.11203708]
[1758562935230,26.0,221.47,221.42,0.71]
[1758562935427,26.0,221.47,221.43,3.51671902]
[1758562935667,26.0,221.47,221.43,0.71]
[1758562935955,26.0,221.47,221.42,4.51617001]
[1758562936260,0.72,221.46,221.42,4.51617001]
[1758562937256,30.5152898,221.47,221.42,5.22617001]
[1758562937431,31.2352898,221.47,221.42,5.22617001]
[1758562939942,31.2352898,221.47,221.41,52.16231303]
[1758562939943,0.72,221.46,221.41,35.76]
[1758562940153,0.72,221.45,221.41,35.76]
[1758562940354,44.61021941,221.47,221.41,35.76]
[1758562940355,5.2359419,221.44,221.41,35.76]
[1758562940552,0.72,221.44,221.41,35.76]
[1758562940762,28.80671902,221.47,221.41,35.76]
[1758562940936,0.72,221.46,221.41,35.76]
[1758562941136,0.72,221.45,221.41,35.76]
[1758562941347,0.72,221.45,221.41,40.27644828]
[1758562942155,2.80671902,221.43,221.32,24.89129467]
[1758562942455,2.80671902,221.39,221.33,36.47]
[1758562942634,3.52671902,221.39,221.33,35.76]
[1758562943854,3.52671902,221.39,221.33,40.27813402]
[1758562944053,3.52671902,221.39,221.33,35.76]
[1758562944258,2.80671902,221.4,221.33,40.98806842]
[1758562944446,33.32347518,221.4,221.33,40.98806842]
[1758562946149,33.32347518,221.4,221.33,54.25625365]
[1758562948042,28.80671902,221.4,221.34,0.66]
[1758562948660,26.0,221.4,221.34,0.66]
[1758562949058,26.0,221.4,221.34,3.46671902]
[1758562949258,33.32304463,221.42,221.35,0.66]
[1758562949778,33.99304463,221.42,221.34,2.80671902]
[1758562950078,0.67,221.41,221.34,2.80671902]
[1758562950385,5.18671183,221.4,221.34,4.51793149]
[1758562951480,5.18671183,221.4,221.34,5.17793149]
[1758562951700,0.67,221.4,221.34,5.17793149]
[1758562952675,0.67,221.39,221.33,53.54629368]
[1758562953201,0.67,221.39,221.33,54.20629368]
[1758562953798,139.38653094,221.41,221.34,0.66]
[1758562954494,139.38653094,221.41,221.35,2.80671902]
[1758562954495,134.2,221.41,221.35,2.80671902]
[1758562954695,134.2,221.41,221.35,2.45667778]
[1758562954886,134.2,221.41,221.35,0.66]
[1758562955082,138.71657649,221.41,221.35,0.66]
[1758562955282,0.67,221.4,221.33,17.78629368]
[1758562955488,26.0,221.38,221.34,35.76]
[1758562955686,26.67,221.38,221.34,35.76]
[1758562956385,31.18723672,221.38,221.34,35.76]
[1758562957295,26.67,221.38,221.34,40.27790837]
[1758562957600,26.0,221.38,221.34,40.27790837]
[1758562957810,26.0,221.38,221.34,40.93790837]
[1758562958483,26.0,221.38,221.34,40.27790837]
[1758562958695,26.0,221.38,221.35,0.66]
[1758562959010,26.0,221.38,221.36,0.66]
[1758562959174,26.0,221.38,221.34,40.27790837]
[1758562959374,26.0,221.38,221.35,5.17757446]
[1758562960183,26.0,221.38,221.34,40.27791314]
[1758562960385,30.51715512,221.38,221.34,36.42]
[1758562960790,26.0,221.38,221.34,40.93789401]
[1758562961173,31.18717652,221.38,221.34,35.74]
[1758562961592,26.67,221.38,221.34,40.91792098]
[1758562962099,26.67,221.38,221.33,15.06486301]
[1758562962100,26.67,221.38,221.33,19.58298767]
[1758562962305,134.87,221.37,221.33,13.26818523]
[1758562962598,2.46667778,221.36,221.28,49.33559401]
[1758562962808,0.67,221.35,221.28,49.33559401]
[1758562963187,0.67,221.35,221.28,51.13227179]
[1758562963387,4.5179362,221.34,221.28,51.13227179]
[1758562963706,0.67,221.35,221.29,0.66]
[1758562964088,0.67,221.35,221.29,2.45667778]
[1758562964507,0.67,221.35,221.29,0.66]
[1758562964712,5.18774524,221.35,221.29,2.45667778]
[1758562964896,0.67,221.35,221.29,2.45667778]
[1758562965209,0.67,221.35,221.29,0.66]
[1758562965397,0.67,221.35,221.29,2.45667778]
[1758562965587,0.67,221.35,221.3,4.51875282]
[1758562965787,0.67,221.35,221.3,18.94800613]
[1758562966005,0.67,221.35,221.3,5.17875282]
[1758562966310,0.67,221.34,221.3,4.51875282]
[1758562966520,5.18762294,221.36,221.3,40.91875282]
[1758562967009,1.79667778,221.35,221.3,35.74]
[1758562967213,26.0,221.33,221.27,1.79667778]
[1758562967392,26.67,221.33,221.27,5.17935711]
[1758562967703,26.67,221.33,221.27,42.71603489]
[1758562967884,26.0,221.33,221.28,14.25559401]
[1758562968080,26.0,221.33,221.29,0.66]
[1758562968488,26.0,221.33,221.28,13.59559401]
[1758562968691,26.67,221.33,221.28,32.31045498]
[1758562969098,26.0,221.32,221.28,31.65045498]
[1758562969298,26.0,221.32,221.28,32.31045498]
[1758562969697,26.0,221.32,221.29,0.66]
[1758562969892,26.0,221.33,221.29,5.17893119]
[1758562970805,26.67,221.33,221.29,4.51893119]
[1758562971408,26.0,221.33,221.29,5.17893119]
[1758562972104,26.67,221.33,221.29,4.51893119]
[1758562973093,26.67,221.33,221.29,5.17893119]
[1758562973307,26.67,221.33,221.29,4.51893119]
[1758562974504,26.0,221.33,221.29,5.17893119]
[1758562974895,134.2,221.34,221.32,1.79667778]
[1758562975094,134.2,221.34,221.32,2.45667778]
[1758562975496,134.2,221.34,221.33,1.79667778]
[1758562975712,134.2,221.34,221.33,2.45667778]
[1758562976299,134.2,221.34,221.33,6.97481811]
[1758562977203,134.86,221.41,221.33,6.97481811]
[1758562977510,134.86,221.41,221.34,50.03559401]
[1758562977818,134.86,221.41,221.37,1.79667778]
[1758562978109,0.66,221.4,221.37,1.79667778]
[1758562978912,160.2,221.41,221.39,1.79667778]
[1758562980713,134.2,221.41,221.4,1.79667778]
[1758562980915,134.86,221.41,221.35,35.72]
[1758562981120,2.82258825,221.4,221.31,0.72]
[1758562981412,38.54258825,221.4,221.33,1.79667778]
[1758562981615,0.66,221.4,221.35,1.79667778]
[1758562981818,0.66,221.39,221.36,1.79667778]
[1758562982116,0.66,221.38,221.35,1.79667778]
[1758562983302,2.16526908,221.39,221.35,1.79667778]
[1758562983504,2.16526908,221.39,221.38,1.79667778]
[1758562983712,134.2,221.41,221.38,1.79667778]
[1758562983897,0.66,221.4,221.35,4.51769599]
[1758562984096,2.8263929,221.4,221.37,1.79667778]
[1758562984301,2.1663929,221.4,221.38,1.79667778]
[1758562984501,2.8263929,221.4,221.38,1.79667778]
[1758562984902,2.8263929,221.4,221.37,1.79667778]
[1758562985108,2.1663929,221.4,221.37,1.79667778]
[1758562985322,2.1663929,221.4,221.36,0.72]
[1758562985323,2.1663929,221.4,221.38,1.79667778]
[1758562985712,134.2,221.41,221.39,2.51667778]
[1758562985927,0.66,221.46,221.4,2.51667778]
[1758562986124,26.0,221.43,221.42,1.79667778]
[1758562986439,2.16744535,221.43,221.42,1.79667778]
[1758562986599,5.54663377,221.43,221.42,1.79667778]
[1758562987033,0.66,221.48,221.42,2.51667778]
[1758562987323,6.42070438,221.47,221.44,1.79667778]
[1758562987627,26.0,221.45,221.44,1.79667778]
[1758562987818,29.37904118,221.45,221.44,1.79667778]
[1758562988422,3.37904118,221.45,221.44,1.79667778]
[1758562988621,3.37904118,221.47,221.44,2.51667778]
[1758562988814,3.37904118,221.46,221.44,2.51667778]
[1758562989130,3.37904118,221.45,221.44,2.51667778]
[1758562989307,3.37904118,221.48,221.44,7.03257373]
[1758562989502,3.37904118,221.47,221.45,1.79667778]
[1758562989701,3.37904118,221.46,221.45,1.79667778]
[1758562989922,3.37904118,221.46,221.45,2.51667778]
[1758562990098,3.37904118,221.48,221.45,1.79667778]
[1758562990303,3.37904118,221.47,221.45,1.79667778]
[1758562990504,3.37904118,221.46,221.44,1.79667778]
[1758562990727,3.37904118,221.45,221.41,4.51633741]
[1758562990904,4.0369049,221.44,221.39,13.59559401]
[1758562991108,26.66,221.46,221.4,2.51667778]
[1758562991348,3.37655051,221.45,221.4,2.51667778]
[1758562991643,4.03655051,221.45,221.4,7.03328582]
[1758562991831,1.79667778,221.43,221.33,0.72]
[1758562992034,26.0,221.41,221.35,13.59559401]
[1758562992335,26.66,221.41,221.35,13.59559401]
[1758562992960,1.79667778,221.39,221.32,1.79667778]
[1758562993107,26.0,221.37,221.31,1.79667778]
[1758562993310,26.0,221.37,221.34,1.79667778]
[1758562993516,0.66,221.38,221.34,1.79667778]
[1758562993713,5.17732393,221.37,221.31,1.79667778]
[1758562993914,6.20414694,221.36,221.31,1.79667778]
[1758562994125,0.66,221.35,221.31,1.79667778]
[1758562994417,6.2039689,221.37,221.31,1.79667778]
[1758562994731,0.66,221.37,221.31,1.79667778]
[1758562994929,6.20389154,221.37,221.31,1.79667778]
[1758562995131,0.66,221.37,221.31,1.79667778]
[1758562995317,6.20387627,221.37,221.32,1.79667778]
[1758562995523,0.66,221.37,221.32,1.79667778]
[1758562995726,6.20387561,221.37,221.32,6.31492554]
[1758562995913,0.66,221.37,221.32,6.31492554]
[1758562996225,6.20387561,221.37,221.33,1.79667778]
[1758562996432,26.0,221.37,221.35,1.79667778]
[1758562996609,5.17686831,221.4,221.35,1.79667778]
[1758562996808,26.0,221.37,221.35,1.79667778]
[1758562997710,26.0,221.38,221.35,2.44667778]
[1758562998111,26.0,221.38,221.35,1.79667778]
[1758562998526,36.34,221.41,221.35,6.31438507]
[1758562998527,0.66,221.41,221.35,6.31438507]
[1758562998726,5.54384189,221.41,221.38,1.79667778]
[1758562998904,0.66,221.43,221.38,1.79667778]
[1758562998905,5.54384189,221.4,221.38,1.79667778]
[1758562999110,26.0,221.41,221.38,2.44667778]
[1758562999826,26.0,221.41,221.38,1.79667778]
[1758563001630,26.0,221.42,221.4,1.79667778]
[1758563001935,26.0,221.42,221.41,1.79667778]
[1758563002120,139.37570043,221.45,221.41,1.79667778]